bitfinex/quotes_BTCUSD_20251010
["timestamp","ask_amount","ask_price","bid_price","bid_amount"]
[1760139326719,0.1755283,114040.0,114020.0,0.03281]
[1760139327123,0.17541325,114020.0,114000.0,0.34]
[1760139327950,0.00876962,114030.0,114000.0,0.09668]
[1760139328150,0.2733583,114040.0,114020.0,0.001]
[1760139328349,0.17539244,114030.0,114020.0,0.001]
[1760139328730,0.1755283,114040.0,114020.0,0.001]
[1760139328937,0.13958209,114070.0,114020.0,0.43768]
[1760139329138,0.00876654,114070.0,114030.0,0.48588]
[1760139329441,0.2214408,114080.0,114040.0,0.43668]
[1760139329442,0.0002,114080.0,114040.0,0.43668]
[1760139329647,0.00896577,114080.0,114050.0,0.48588]
[1760139329850,0.0002,114080.0,114050.0,0.48588]
[1760139330070,0.0002,114080.0,114060.0,0.43668]
[1760139330698,0.0002,114080.0,114060.0,0.34]
[1760139331093,0.00896577,114080.0,114050.0,0.0502]
[1760139331278,0.00896577,114080.0,114060.0,0.14588]
[1760139331279,0.00070441,114080.0,114060.0,0.14588]
[1760139331626,0.00070441,114080.0,114070.0,0.43668]
[1760139332509,0.00070441,114080.0,114070.0,0.34]
[1760139332711,0.00070441,114080.0,114070.0,0.09668]
[1760139334280,0.00070441,114080.0,114070.0,0.48234331]
[1760139334882,0.00046304,114120.0,114080.0,0.34]
[1760139334883,0.0087627,114120.0,114080.0,0.34]
[1760139335075,0.18416939,114120.0,114080.0,0.48007024]
[1760139335296,0.00015132,114120.0,114080.0,0.38339024]
[1760139335454,0.00015132,114120.0,114100.0,0.34]
[1760139335668,0.00015132,114120.0,114110.0,0.04949537]
[1760139335873,0.00015132,114120.0,114110.0,0.48617537]
[1760139336091,0.00015132,114120.0,114110.0,0.48588]
[1760139336469,0.00015132,114120.0,114110.0,0.3892]
[1760139336976,0.00015132,114120.0,114110.0,0.34]
[1760139337396,0.18401752,114120.0,114100.0,0.34]
[1760139337598,0.18401752,114120.0,114110.0,0.002]
[1760139338116,0.18401752,114120.0,114100.0,0.34]
[1760139338557,0.19624724,114130.0,114110.0,0.34]
[1760139338558,0.20500917,114130.0,114110.0,0.34]
[1760139338802,0.02100773,114130.0,114110.0,0.34]
[1760139339070,0.04665,114140.0,114120.0,0.04765]
[1760139339290,0.20275948,114130.0,114110.0,0.34]
[1760139339487,0.22190411,114120.0,114110.0,0.341]
[1760139339706,0.22190411,114120.0,114110.0,0.001]
[1760139340094,0.18403386,114110.0,114080.0,0.04765]
[1760139340273,0.22995386,114110.0,114080.0,0.04780132]
[1760139340471,0.1861084,114100.0,114060.0,0.03682514]
[1760139340676,0.19502376,114100.0,114070.0,0.38765]
[1760139340848,0.19502376,114100.0,114090.0,0.04765]
[1760139340849,0.00015112,114100.0,114090.0,0.04765]
[1760139341049,0.00015112,114100.0,114090.0,0.13991]
[1760139341287,0.23493481,114140.0,114090.0,0.13991]
[1760139341488,0.23493481,114140.0,114110.0,0.34]
[1760139341489,0.18400316,114130.0,114110.0,0.34]
[1760139341726,0.18413718,114140.0,114110.0,0.38765]
[1760139341896,0.0001512,114140.0,114110.0,0.47991]
[1760139342092,0.0001512,114140.0,114130.0,0.38765]
[1760139342491,0.0001512,114140.0,114130.0,0.47991]
[1760139342769,0.0102,114170.0,114130.0,0.47991]
[1760139343011,0.0102,114170.0,114130.0,0.38765]
[1760139343012,0.17521174,114150.0,114130.0,0.38765]
[1760139343169,0.17521174,114150.0,114110.0,0.04765]
[1760139343170,0.20929457,114140.0,114110.0,0.04765]
[1760139343370,0.00876193,114130.0,114110.0,0.0001512]
[1760139343579,0.17524723,114130.0,114110.0,0.0001512]
[1760139343783,0.23135723,114130.0,114110.0,0.0001512]
[1760139344084,0.23136411,114120.0,114110.0,0.0001512]
[1760139344537,0.17525411,114120.0,114110.0,0.0001512]
[1760139344739,0.02531,114140.0,114120.0,0.34]
[1760139345112,0.20958891,114150.0,114120.0,0.34]
[1760139345282,0.02562,114150.0,114120.0,0.34]
[1760139345472,0.20958938,114150.0,114120.0,0.34]
[1760139345909,0.20958938,114150.0,114120.0,0.09226]
[1760139346362,0.18398458,114140.0,114110.0,0.0478012]
[1760139346557,0.18398458,114140.0,114110.0,0.3878012]
[1760139346558,0.17524614,114130.0,114110.0,0.3878012]
[1760139346771,0.18398458,114140.0,114110.0,0.3411512]
[1760139346978,0.01895886,114170.0,114120.0,0.13991]
[1760139347123,0.2101887,114150.0,114120.0,0.04765]
[1760139347733,0.18398627,114140.0,114110.0,0.0011512]
[1760139347962,0.00876117,114140.0,114110.0,0.0011512]
[1760139348165,0.00876117,114140.0,114110.0,0.0001512]
[1760139348360,0.2653987,114150.0,114110.0,0.0924112]
[1760139348562,0.02622,114150.0,114120.0,0.09294149]
[1760139348765,0.18395365,114160.0,114130.0,0.13991]
[1760139348962,0.18395365,114160.0,114130.0,0.04765]
[1760139349518,0.00876117,114140.0,114110.0,0.4781812]
[1760139349698,0.17525411,114120.0,114110.0,0.3401512]
[1760139349830,0.1752401,114130.0,114110.0,0.3401512]
[1760139350031,0.08149,114150.0,114110.0,0.1408912]
[1760139350284,0.03199,114150.0,114110.0,0.0459212]
[1760139350481,0.03199,114150.0,114120.0,0.09497]
[1760139350689,0.0102,114170.0,114130.0,0.09497]
[1760139350887,0.0102,114170.0,114160.0,0.04577]
[1760139351089,0.0102,114170.0,114160.0,0.48074]
[1760139352156,0.0052,114200.0,114170.0,0.34]
[1760139352483,0.0011258,114200.0,114190.0,0.38577]
[1760139352697,0.01110337,114240.0,114190.0,0.78577]
[1760139352876,0.01125459,114240.0,114200.0,0.09497]
[1760139353074,0.01125459,114240.0,114230.0,0.04577]
[1760139353345,0.01125459,114240.0,114230.0,0.48074]
[1760139354517,0.01212,114260.0,114240.0,0.34]
[1760139354692,0.01212,114270.0,114240.0,0.34]
[1760139354908,0.01227105,114270.0,114240.0,0.34]
[1760139355130,0.00015105,114270.0,114260.0,0.34]
[1760139355822,0.01227105,114270.0,114260.0,0.34]
[1760139356190,0.00792869,114270.0,114230.0,0.43677]
[1760139356391,0.00875196,114260.0,114230.0,0.43677]
[1760139356617,0.17504495,114260.0,114230.0,0.43692105]
[1760139356924,0.18378426,114270.0,114230.0,0.43580587]
[1760139357121,0.19407123,114280.0,114240.0,0.09497]
[1760139357122,0.18529058,114280.0,114240.0,0.09497]
[1760139357327,0.17502433,114270.0,114240.0,0.09597]
[1760139357546,0.19404101,114280.0,114250.0,0.09497]
[1760139357827,0.19404101,114280.0,114240.0,0.341]
[1760139358040,0.17503967,114260.0,114240.0,0.341]
[1760139358242,0.18379163,114260.0,114230.0,0.09580587]
[1760139358649,0.17505803,114250.0,114230.0,0.39115105]
[1760139358860,0.26239163,114260.0,114230.0,0.39115105]
[1760139359068,0.17505928,114250.0,114230.0,0.39115105]
[1760139359275,0.26239163,114260.0,114230.0,0.05115105]
[1760139359276,0.26211163,114260.0,114230.0,0.05115105]
[1760139359481,0.17505502,114250.0,114230.0,0.05115105]
[1760139359686,0.01028,114280.0,114240.0,0.09497]
[1760139359895,0.17505523,114250.0,114230.0,0.04692105]
[1760139360101,0.20810523,114250.0,114230.0,0.00115105]
[1760139360313,0.17507002,114240.0,114230.0,0.00115105]
[1760139360519,0.17507002,114240.0,114230.0,0.00015105]
[1760139360729,0.20810523,114250.0,114230.0,0.00015105]
[1760139360912,0.20810523,114250.0,114230.0,0.00115105]
[1760139360913,0.17507002,114240.0,114230.0,0.00115105]
[1760139361351,0.04535,114240.0,114230.0,0.00015105]
[1760139361572,0.22042002,114240.0,114230.0,0.00015105]
[1760139361825,0.22042002,114240.0,114230.0,0.00115105]
[1760139362024,0.08990962,114180.0,114160.0,0.14074]
[1760139362228,0.22608129,114210.0,114170.0,0.09497]
[1760139362441,0.18385843,114220.0,114180.0,0.04577]
[1760139362644,0.18387186,114210.0,114180.0,0.14074]
[1760139362851,0.18387186,114210.0,114190.0,0.34]
[1760139363095,0.18387186,114210.0,114180.0,0.14074]
[1760139363325,0.22606186,114210.0,114180.0,0.04577]
[1760139363537,0.17513256,114200.0,114190.0,0.34]
[1760139363956,0.17513256,114200.0,114160.0,0.04627422]
[1760139363957,0.18391569,114190.0,114160.0,0.04627422]
[1760139364169,0.1751639,114180.0,114160.0,0.04727422]
[1760139364590,0.17517736,114170.0,114160.0,0.00150422]
[1760139365194,0.17517736,114170.0,114160.0,0.00050422]
[1760139365679,0.20822736,114170.0,114160.0,0.00050422]
[1760139365888,0.25772736,114170.0,114160.0,0.00050422]
[1760139366109,0.17878549,114120.0,114090.0,0.04577]
[1760139366322,0.04219,114100.0,114090.0,0.00015122]
[1760139366534,0.23353475,114110.0,114090.0,0.00015122]
[1760139366747,0.184072,114090.0,114060.0,0.01851185]
[1760139366958,0.20823093,114070.0,114060.0,0.00050441]
[1760139367166,0.02861591,114070.0,114060.0,0.00050441]
[1760139367374,0.02861,114110.0,114060.0,0.14124441]
[1760139367579,0.02407852,114110.0,114070.0,0.09497]
[1760139367788,0.20381174,114110.0,114070.0,0.11348855]
[1760139368032,0.00876501,114090.0,114060.0,0.00050441]
[1760139368239,0.18157045,114100.0,114060.0,0.00150441]
[1760139368446,0.01529274,114110.0,114070.0,0.09433]
[1760139368653,0.18397037,114150.0,114090.0,0.04923]
[1760139368911,0.199286,114160.0,114100.0,0.43433]
[1760139369173,0.20022226,114170.0,114110.0,0.48356]
[1760139369174,0.1751805,114170.0,114110.0,0.48356]
[1760139369428,0.00875963,114160.0,114120.0,0.43433]
[1760139369635,0.00875886,114170.0,114120.0,0.34]
[1760139369836,0.0087604,114150.0,114120.0,0.34]
[1760139369988,0.18393681,114170.0,114120.0,0.34]
[1760139369989,0.02862,114190.0,114130.0,0.48356]
[1760139370192,0.17516249,114180.0,114130.0,0.38923]
[1760139370572,0.16170941,114160.0,114130.0,0.34]
[1760139370781,0.17073395,114130.0,114120.0,0.0001512]
[1760139371112,0.18407975,114090.0,114060.0,0.02315776]
[1760139371319,0.19923197,114080.0,114060.0,0.01907917]
[1760139371545,0.17533093,114070.0,114060.0,0.01907917]
[1760139371707,0.17062839,114070.0,114060.0,0.01907917]
[1760139371914,0.17062839,114070.0,114060.0,0.00050441]
[1760139372155,0.24977301,114060.0,114050.0,0.02315776]
[1760139372351,0.24977301,114060.0,114050.0,0.02330888]
[1760139372580,0.24977301,114060.0,114050.0,0.01872588]
[1760139372781,0.26492301,114060.0,114050.0,0.01872588]
[1760139372998,0.26492301,114060.0,114050.0,0.00015112]
[1760139373126,0.07442671,114060.0,114050.0,0.00015112]
[1760139373333,0.24977301,114060.0,114050.0,0.00015112]
[1760139373531,0.07442671,114060.0,114050.0,0.00015112]
[1760139373942,0.24977301,114060.0,114050.0,0.00015112]
[1760139374593,0.26492301,114060.0,114050.0,0.00015112]
[1760139374810,0.26492301,114060.0,114050.0,0.00085112]
[1760139375009,0.17537706,114040.0,114030.0,0.0005]
[1760139375615,0.27254032,114060.0,114030.0,0.0005]
[1760139375859,0.07442671,114060.0,114030.0,0.0005]
[1760139376014,0.07442671,114060.0,114050.0,0.34]
[1760139376221,0.24977301,114060.0,114050.0,0.35860721]
[1760139376663,0.24977301,114060.0,114050.0,0.34]
[1760139376894,0.07442671,114060.0,114050.0,0.43433]
[1760139377823,0.17536168,114050.0,114040.0,0.38923]
[1760139378027,0.24977301,114060.0,114040.0,0.48356]
[1760139378248,0.24977301,114060.0,114050.0,0.001]
[1760139378660,0.17536168,114050.0,114040.0,0.48356]
[1760139379009,0.07442671,114060.0,114040.0,0.48456]
[1760139379217,0.24977301,114060.0,114050.0,0.09433]
[1760139379425,0.07442671,114060.0,114050.0,0.09433]
[1760139379797,0.24977301,114060.0,114050.0,0.09433]
[1760139380022,0.17536168,114050.0,114040.0,0.05023]
[1760139380218,0.17536168,114050.0,114040.0,0.001]
[1760139380713,0.07442671,114060.0,114040.0,0.09533]
[1760139380885,0.07442671,114060.0,114050.0,0.09433]
[1760139381089,0.19811809,114100.0,114050.0,0.09433]
[1760139381090,0.18410187,114120.0,114050.0,0.43433]
[1760139381294,0.18403555,114110.0,114060.0,0.48356]
[1760139381537,0.00050285,114120.0,114100.0,0.04923]
[1760139381738,0.00050285,114120.0,114100.0,0.38923]
[1760139381942,0.17526947,114110.0,114100.0,0.34]
[1760139382441,0.24627947,114110.0,114100.0,0.34]
[1760139382741,0.24627947,114110.0,114070.0,0.38923]
[1760139382742,0.17531556,114080.0,114070.0,0.38923]
[1760139382970,0.17531193,114090.0,114070.0,0.48356]
[1760139383158,0.17530166,114090.0,114070.0,0.48356]
[1760139383355,0.17531556,114080.0,114070.0,0.48356]
[1760139383755,0.18404956,114100.0,114070.0,0.48356]
[1760139383958,0.00050285,114080.0,114070.0,0.48356]
[1760139385635,0.17534786,114060.0,114030.0,0.14406]
[1760139385840,0.18411517,114060.0,114030.0,0.14406]
[1760139386040,0.17536799,114050.0,114030.0,0.14406]
[1760139386245,0.18411517,114060.0,114040.0,0.09433]
[1760139387115,0.17581841,114080.0,114040.0,0.43433]
[1760139387116,0.00926862,114080.0,114040.0,0.43433]
[1760139387399,0.00926862,114080.0,114030.0,0.04973]
[1760139387400,0.00876731,114060.0,114030.0,0.04973]
[1760139387553,0.18411374,114060.0,114040.0,0.34]
[1760139387764,0.17536172,114050.0,114040.0,0.34]
[1760139388839,0.00926862,114080.0,114040.0,0.09433]
[1760139389226,0.1840657,114090.0,114030.0,0.38973]
[1760139389443,0.1840657,114090.0,114040.0,0.09433]
[1760139389444,0.17534844,114060.0,114040.0,0.09433]
[1760139389683,0.17537706,114040.0,114030.0,0.04973]
[1760139389894,0.17537706,114040.0,114030.0,0.14406]
[1760139390099,0.17536168,114050.0,114030.0,0.14406]
[1760139390342,0.17537706,114040.0,114030.0,0.14406]
[1760139390550,0.17537706,114040.0,114030.0,0.04973]
[1760139390954,0.17536168,114050.0,114030.0,0.14456285]
[1760139391159,0.17536436,114050.0,114030.0,0.14456285]
[1760139391369,0.21940178,114070.0,114030.0,0.14456285]
[1760139391568,0.17536001,114060.0,114040.0,0.43433]
[1760139391988,0.18410181,114070.0,114050.0,0.48356]
[1760139392201,0.1753463,114060.0,114050.0,0.38923]
[1760139392409,0.18408156,114080.0,114050.0,0.38923]
[1760139392579,0.18408134,114080.0,114050.0,0.38923]
[1760139393225,0.18409879,114070.0,114040.0,0.34]
[1760139393415,0.17536168,114050.0,114040.0,0.34]
[1760139394032,0.21071141,114100.0,114040.0,0.43433]
[1760139394267,0.18408174,114080.0,114050.0,0.14356]
[1760139394473,0.1753463,114060.0,114050.0,0.14356]
[1760139394695,0.1753463,114060.0,114050.0,0.001]
[1760139394869,0.0087627,114120.0,114050.0,0.14456]
[1760139395078,0.04421,114130.0,114060.0,0.0946756]
[1760139395079,0.1146,114130.0,114060.0,0.0946756]
[1760139395397,0.17530151,114090.0,114060.0,0.09433]
[1760139395686,0.18403913,114110.0,114070.0,0.09433]
[1760139395907,0.17528545,114100.0,114070.0,0.09433]
[1760139396109,0.184083,114080.0,114050.0,0.14356]
[1760139396311,0.1840822,114080.0,114030.0,0.04973]
[1760139396517,0.18410327,114070.0,114030.0,0.14406]
[1760139396654,0.18411404,114060.0,114030.0,0.0005]
[1760139396860,0.18411404,114060.0,114030.0,0.00100285]
[1760139397061,0.17536928,114050.0,114030.0,0.00100285]
[1760139397292,0.17537706,114040.0,114030.0,0.00100285]
[1760139397697,0.20217706,114040.0,114030.0,0.00100285]
[1760139398261,0.04403,114050.0,114030.0,0.00100285]
[1760139398521,0.17537706,114040.0,114030.0,0.00100285]
[1760139398770,0.20217706,114040.0,114030.0,0.00200285]
[1760139399136,0.20217706,114040.0,114030.0,0.00100285]
[1760139399663,0.17537706,114040.0,114030.0,0.00100285]
[1760139400304,0.18411408,114060.0,114030.0,0.00100285]
[1760139400509,0.18410327,114070.0,114030.0,0.00100285]
[1760139400631,0.18408579,114080.0,114040.0,0.43891]
[1760139401059,0.2105544,114100.0,114050.0,0.48591]
[1760139401605,0.04421,114090.0,114060.0,0.43891]
[1760139401792,0.17533093,114070.0,114060.0,0.34]
[1760139401948,0.05297501,114090.0,114060.0,0.34]
[1760139402154,0.05297501,114090.0,114060.0,0.43891]
[1760139402155,0.2282757,114090.0,114060.0,0.43891]
[1760139402539,0.18412899,114060.0,114030.0,0.00100285]
[1760139402740,0.17537706,114040.0,114030.0,0.00100285]
[1760139403090,0.17540782,114020.0,114010.0,0.00458575]
[1760139403332,0.17540782,114020.0,114010.0,0.09223754]
[1760139403597,0.20254782,114020.0,114010.0,0.08750056]
[1760139403732,0.17543859,114000.0,113990.0,0.0004]
[1760139403932,0.17558927,114000.0,113990.0,0.0083809]
[1760139404134,0.20272927,114000.0,113990.0,0.0083809]
[1760139404488,0.10415426,113960.0,113950.0,0.14591]
[1760139404886,0.17548477,113970.0,113950.0,0.14591]
[1760139405114,0.184259,113970.0,113950.0,0.00458752]
[1760139405323,0.17550017,113960.0,113950.0,0.00458752]
[1760139405680,0.20295077,113960.0,113950.0,0.00458752]
[1760139405902,0.17553098,113940.0,113930.0,0.2504]
[1760139406089,0.0437,113990.0,113930.0,0.41254103]
[1760139406295,0.0437,113990.0,113950.0,0.08850055]
[1760139406296,0.1842433,113980.0,113950.0,0.08850055]
[1760139406585,0.17550017,113960.0,113950.0,0.08850055]
[1760139406746,0.20230017,113960.0,113950.0,0.08850055]
[1760139406951,0.20230017,113960.0,113950.0,0.001]
[1760139407369,0.00877346,113980.0,113950.0,0.08850055]
[1760139407610,0.24595446,113990.0,113960.0,0.42750055]
[1760139407611,0.0437,113990.0,113960.0,0.42750055]
[1760139407841,0.0437,113990.0,113960.0,0.52641055]
[1760139408006,0.22775768,113990.0,113960.0,0.42750055]
[1760139408231,0.17547969,113980.0,113960.0,0.42750055]
[1760139408459,0.22775768,113990.0,113960.0,0.52641055]
[1760139408862,0.17547555,113980.0,113960.0,0.52641055]
[1760139409062,0.17547555,113980.0,113960.0,0.42750055]
[1760139409265,0.17547555,113980.0,113960.0,0.08750055]
[1760139409471,0.22775768,113990.0,113960.0,0.11440055]
[1760139409613,0.22775768,113990.0,113960.0,0.20570055]
[1760139409814,0.04437,114030.0,113980.0,0.08750055]
[1760139410060,0.2285402,114030.0,113990.0,0.42750055]
[1760139410373,0.00877039,114020.0,113990.0,0.44622019]
[1760139410512,0.00877039,114020.0,113990.0,0.42750055]
[1760139410513,0.17542332,114010.0,113990.0,0.42750055]
[1760139410950,0.00015135,114010.0,113990.0,0.56566055]
[1760139411359,0.00015135,114010.0,113990.0,0.42750055]
[1760139411559,0.18423836,113990.0,113960.0,0.09717529]
[1760139411755,0.18423836,113990.0,113970.0,0.08750055]
[1760139411756,0.17546938,113980.0,113970.0,0.08750055]
[1760139411991,0.17546938,113980.0,113970.0,0.42750055]
[1760139412197,0.17546938,113980.0,113970.0,0.08750055]
[1760139412893,0.17548477,113970.0,113960.0,0.0269]
[1760139413071,0.17548477,113970.0,113960.0,0.11440055]
[1760139413272,0.18049204,113980.0,113970.0,0.34]
[1760139413485,0.18049204,113980.0,113970.0,0.42750055]
[1760139413693,0.15320204,113980.0,113970.0,0.42750055]
[1760139413897,0.00877192,114000.0,113970.0,0.42850055]
[1760139414127,0.00015133,114000.0,113990.0,0.34]
[1760139414322,0.00015133,114000.0,113990.0,0.47436055]
[1760139414543,0.18412999,114050.0,113990.0,0.73300155]
[1760139414795,0.18428132,114050.0,114030.0,0.34]
[1760139414993,0.17552214,114050.0,114030.0,0.42750055]
[1760139415316,0.17551476,114050.0,114030.0,0.56566055]
[1760139415524,0.17537706,114040.0,114030.0,0.42750055]
[1760139415936,0.17551476,114050.0,114030.0,0.08750055]
[1760139416144,0.17537706,114040.0,114030.0,0.08750055]
[1760139416569,0.17551476,114050.0,114030.0,0.08850055]
[1760139416776,0.00015133,114050.0,114030.0,0.22666055]
[1760139417193,0.00015133,114050.0,114040.0,0.0913]
[1760139417405,0.00015133,114050.0,114040.0,0.51880055]
[1760139417812,0.00876501,114090.0,114050.0,0.34]
[1760139418022,0.00876501,114090.0,114060.0,0.08750055]
[1760139418023,0.18408153,114080.0,114060.0,0.08750055]
[1760139418620,0.17533093,114070.0,114060.0,0.08750055]
[1760139419057,0.21852093,114070.0,114060.0,0.08750055]
[1760139419674,0.22758952,114090.0,114060.0,0.08750055]
[1760139419877,0.22758952,114090.0,114030.0,0.04686]
[1760139419878,0.11445055,114080.0,114030.0,0.04686]
[1760139420089,0.11445055,114080.0,114060.0,0.001]
[1760139420090,0.21104747,114070.0,114060.0,0.001]
[1760139420562,0.17537706,114040.0,114030.0,0.08750055]
[1760139421072,0.18412685,114080.0,114040.0,0.06]
[1760139421224,0.17528499,114100.0,114070.0,0.13436055]
[1760139421425,0.0087627,114120.0,114090.0,0.42750055]
[1760139421628,0.0087627,114120.0,114090.0,0.51880055]
[1760139421629,0.17527227,114110.0,114090.0,0.51880055]
[1760139421830,0.17527227,114110.0,114100.0,0.51880055]
[1760139421831,0.17526947,114110.0,114100.0,0.51880055]
[1760139422031,0.00050453,114120.0,114100.0,0.51880055]
[1760139422248,0.00050453,114120.0,114110.0,0.56566055]
[1760139423050,0.00050453,114120.0,114110.0,0.51880055]
[1760139423258,0.23263858,114190.0,114120.0,0.38543951]
[1760139423465,0.17516207,114180.0,114160.0,0.08750055]
[1760139423915,0.1752234,114140.0,114130.0,0.34]
[1760139424119,0.18398457,114140.0,114130.0,0.08750055]
[1760139424343,0.1752156,114150.0,114130.0,0.08750055]
[1760139424564,0.17520818,114150.0,114140.0,0.42750055]
[1760139425101,0.1753595,114150.0,114140.0,0.42750055]
[1760139425526,0.1753595,114150.0,114140.0,0.08750055]
[1760139425730,0.17535937,114150.0,114140.0,0.08750055]
[1760139425982,0.17535937,114150.0,114140.0,0.17980055]
[1760139425983,0.00015132,114150.0,114140.0,0.17980055]
[1760139426234,0.01375733,114190.0,114140.0,0.17980055]
[1760139426366,0.00515115,114190.0,114180.0,0.08750055]
[1760139426572,0.00515115,114190.0,114180.0,0.22566055]
[1760139426778,0.00515115,114190.0,114180.0,0.08750055]
[1760139427428,0.18029783,114190.0,114180.0,0.08750055]
[1760139427662,0.18029783,114190.0,114150.0,0.34]
[1760139427663,0.18393043,114180.0,114150.0,0.34]
[1760139427895,0.18393043,114180.0,114160.0,0.08750055]
[1760139428117,0.00515115,114190.0,114160.0,0.08750055]
[1760139428355,0.17517736,114170.0,114160.0,0.08750055]
[1760139428963,0.17517736,114170.0,114140.0,0.001]
[1760139428964,0.17520805,114150.0,114140.0,0.001]
[1760139429120,0.17520805,114150.0,114140.0,0.08850055]
[1760139429335,0.1607255,114120.0,114110.0,0.04686]
[1760139429540,0.1607255,114120.0,114110.0,0.08750055]
[1760139430139,0.1607255,114120.0,114110.0,0.08765187]
[1760139432004,0.1607255,114120.0,114110.0,0.42965187]
[1760139432214,0.18400961,114130.0,114110.0,0.52322187]
[1760139432418,0.18399812,114140.0,114120.0,0.52107055]
[1760139432611,0.14078824,114150.0,114130.0,0.52107055]
[1760139432935,0.21889667,114180.0,114140.0,0.52107055]
[1760139432936,0.17520667,114180.0,114140.0,0.52107055]
[1760139433075,0.17520018,114160.0,114150.0,0.42750055]
[1760139433274,0.17519271,114160.0,114150.0,0.42750055]
[1760139433761,0.17520667,114180.0,114150.0,0.52107055]
[1760139433950,0.17520667,114180.0,114160.0,0.56945055]
[1760139433951,0.1839208,114180.0,114160.0,0.56945055]
[1760139434147,0.1839208,114180.0,114170.0,0.42750055]
[1760139434853,0.005,114190.0,114170.0,0.52107055]
[1760139435012,0.00515115,114190.0,114180.0,0.52107055]
[1760139435382,0.04983387,114200.0,114180.0,0.52107055]
[1760139435518,0.03475132,114200.0,114190.0,0.56945055]
[1760139435875,0.17511698,114210.0,114190.0,0.56945055]
[1760139436046,0.17513134,114200.0,114190.0,0.38838]
[1760139436405,0.17513134,114200.0,114170.0,0.001]
[1760139436629,0.17516202,114180.0,114170.0,0.00115115]
[1760139436935,0.17516202,114180.0,114170.0,0.00015115]
[1760139437563,0.14854264,114190.0,114170.0,0.00015115]
[1760139437771,0.17516202,114180.0,114170.0,0.00015115]
[1760139437976,0.1752234,114140.0,114110.0,0.0269]
[1760139438179,0.17525042,114130.0,114120.0,0.08750055]
[1760139438596,0.18396845,114150.0,114120.0,0.18107055]
[1760139438915,0.18396845,114150.0,114140.0,0.08750055]
[1760139439117,0.18396845,114150.0,114140.0,0.42750055]
[1760139439522,0.17516495,114180.0,114140.0,0.52107055]
[1760139439731,0.17519393,114160.0,114150.0,0.43357]
[1760139439933,0.18395654,114190.0,114160.0,0.34]
[1760139440129,0.18395654,114190.0,114170.0,0.42750055]
[1760139440461,0.17516202,114180.0,114170.0,0.08750055]
[1760139441495,0.17520805,114150.0,114140.0,0.34]
[1760139441668,0.1752234,114140.0,114130.0,0.38838]
[1760139441877,0.1752234,114140.0,114130.0,0.50072863]
[1760139442099,0.1752234,114140.0,114130.0,0.16072863]
[1760139442807,0.17521753,114150.0,114130.0,0.3158869]
[1760139443006,0.17521753,114150.0,114140.0,0.42750055]
[1760139443207,0.17521753,114150.0,114140.0,0.53969786]
[1760139444211,0.18396386,114160.0,114140.0,0.5630285]
[1760139444372,0.18396386,114160.0,114140.0,0.38395795]
[1760139444373,0.17520805,114150.0,114140.0,0.38395795]
[1760139444548,0.17520805,114150.0,114140.0,0.44812786]
[1760139444754,0.17520805,114150.0,114140.0,0.08750055]
[1760139445234,0.17520805,114150.0,114140.0,0.08850055]
[1760139445634,0.17520805,114150.0,114140.0,0.09050055]
[1760139445635,0.17495478,114150.0,114140.0,0.09050055]
[1760139445810,0.17495478,114150.0,114140.0,0.18207055]
[1760139446039,0.18390629,114190.0,114140.0,0.20071211]
[1760139446040,0.00875733,114190.0,114140.0,0.20071211]
[1760139446248,0.00875733,114190.0,114160.0,0.08750055]
[1760139446249,0.18393469,114190.0,114160.0,0.08750055]
[1760139446435,0.17517736,114170.0,114160.0,0.08750055]
[1760139446577,0.17517736,114170.0,114160.0,0.52107055]
[1760139446778,0.17517736,114170.0,114160.0,0.42750055]
[1760139447404,0.17517736,114170.0,114160.0,0.42950055]
[1760139447824,0.1752234,114140.0,114130.0,0.00015132]
[1760139448152,0.1752234,114140.0,114130.0,0.08765187]
[1760139448305,0.175163,114180.0,114140.0,0.04838]
[1760139448508,0.1839211,114180.0,114160.0,0.08750055]
[1760139448705,0.1839211,114180.0,114140.0,0.0670428]
[1760139448706,0.17516202,114180.0,114170.0,0.08750055]
[1760139449381,0.1752234,114140.0,114130.0,0.09557]
[1760139449567,0.1752234,114140.0,114130.0,0.08750055]
[1760139449770,0.1752234,114140.0,114130.0,0.08965187]
[1760139450217,0.1752234,114140.0,114130.0,0.00015132]
[1760139450417,0.1752234,114140.0,114130.0,0.00215132]
[1760139450628,0.2189134,114140.0,114130.0,1e-08]
[1760139450830,0.2684134,114140.0,114130.0,1e-08]
[1760139451032,0.2189134,114140.0,114130.0,1e-08]
[1760139451340,0.17525411,114120.0,114110.0,0.09857]
[1760139451542,0.18396879,114150.0,114110.0,0.204777]
[1760139451745,0.17523943,114130.0,114120.0,0.52107055]
[1760139451888,0.00015101,114150.0,114120.0,0.53977765]
[1760139452088,0.17535906,114150.0,114140.0,0.47588055]
[1760139452329,0.17535906,114150.0,114140.0,0.42750055]
[1760139452637,0.17535906,114150.0,114140.0,0.34]
[1760139453202,0.17535906,114150.0,114140.0,0.342]
[1760139453411,0.17535906,114150.0,114140.0,0.002]
[1760139453611,0.17535906,114150.0,114140.0,0.00326082]
[1760139453833,0.17535906,114150.0,114140.0,0.00126082]
[1760139454035,0.17535906,114150.0,114140.0,0.00226082]
[1760139454798,0.17535906,114150.0,114140.0,0.00126082]
[1760139455257,0.17535906,114150.0,114140.0,0.00226082]
[1760139455602,0.17535906,114150.0,114140.0,0.02916082]
[1760139456052,0.17525411,114120.0,114110.0,0.345]
[1760139456274,0.17525411,114120.0,114110.0,0.09250055]
[1760139456518,0.17525411,114120.0,114110.0,0.005]
[1760139456925,0.00876117,114140.0,114110.0,0.2531781]
[1760139457121,0.17523876,114130.0,114120.0,0.18107055]
[1760139457328,0.17523876,114130.0,114120.0,0.52107055]
[1760139459032,0.17523876,114130.0,114120.0,0.52207055]
[1760139459187,0.18411946,114150.0,114130.0,0.34]
[1760139459413,0.18399346,114180.0,114150.0,0.34]
[1760139459758,0.17517768,114170.0,114160.0,0.57248055]
[1760139460742,0.17516202,114180.0,114170.0,0.34]
[1760139460918,0.17516202,114180.0,114170.0,0.52522055]
[1760139461325,0.00875656,114200.0,114170.0,0.5529426]
[1760139461573,0.18404114,114200.0,114180.0,0.18522055]
[1760139461908,0.17528252,114200.0,114190.0,0.23248055]
[1760139462115,0.00015118,114200.0,114190.0,0.23248055]
[1760139462809,0.00015118,114200.0,114190.0,0.25123135]
[1760139463179,0.00015118,114200.0,114190.0,0.25323135]
[1760139463355,0.17528252,114200.0,114190.0,0.25323135]
[1760139463559,0.17528252,114200.0,114190.0,0.23648055]
[1760139463756,0.17528252,114200.0,114190.0,0.09150055]
[1760139464020,0.17528252,114200.0,114190.0,0.004]
[1760139464228,0.22478252,114200.0,114190.0,0.002]